Body Name,Body,Service Division Label,Service Division Code,Organisational Unit,Expenditure Category,Expenditure Code,CIPFA detailed expediture type,CIPFA detailed expediture code,Narrative,Date,Transaction number,Net Amount,Capital and Revenue,Supplier Name,Supplier ID,,
Chorley Borough Council,http://statistics.data.gov.uk/id/local-authority/30UE,Central Support Services,1009,CUST - Customer & Digital,Telephones - Other,40085,Communication and Computing,5028,Adept Telecom - Aug 23,20/09/2023,0184640,"2,034.92",Revenue,Adept Telecom PLC,77452,,
Chorley Borough Council,http://statistics.data.gov.uk/id/local-authority/30UE,Capital,Capital,GROW - Commercial Services,Other Capital Related Fees,03024,Capital Expenditure,Capital,Feasibility Study for upcoming Decarbonisation Scheme across Leisure Sites,13/09/2023,0183751,"28,889.00",Capital,Alliance Leisure Services Limited,89439,,
Chorley Borough Council,http://statistics.data.gov.uk/id/local-authority/30UE,Unapportionable Central OHeads,1009,GROW - Commercial Services,General Repairs - Reactive,20004,Repairs Maintenance & Alts,5005,Reactive Security Systems Repair Works @ Cotswold House,13/09/2023,0184061,"11,226.49",Revenue,Amalgamated Ltd,78289,,
Chorley Borough Council,http://statistics.data.gov.uk/id/local-authority/30UE,Central Support Services,1009,CUST - Customer & Digital,Computer Software-Additional,40102,Communication and Computing,5028,Amazon AWS web services - 718576685325 Cloud chargesAugust 2023,06/09/2023,0184155,"7,222.37",Revenue,Amazon Web Services EMEA SARL,80604,,
Chorley Borough Council,http://statistics.data.gov.uk/id/local-authority/30UE,Central Support Services,1009,CUST - Customer & Digital,Computer Software-Additional,40102,Communication and Computing,5028,"Amazon AWS web services - 718576685325 Cloud charges, , July 2023",27/09/2023,0184942,"6,781.39",Revenue,Amazon Web Services EMEA SARL,80604,,
Chorley Borough Council,http://statistics.data.gov.uk/id/local-authority/30UE,Homelessness,1075,EARL - Communities,Grants - Tenant Participation,40142,Grants and Subscriptions,5031,,20/09/2023,0184754,500.00,Revenue,Anne Barnish,85651,,
Chorley Borough Council,http://statistics.data.gov.uk/id/local-authority/30UE,Other Short Term Creditors,,GOVN - Policy & Governance,Amount Paid,00010,Balance Sheet,Balance,AVC Wise Scheme - annual purchase order (monthly spend approximately 8872,06/09/2023,0184262,504.43,Revenue,AVCWise,89242,,
Chorley Borough Council,http://statistics.data.gov.uk/id/local-authority/30UE,Service Management & Support,1009,CUST - Customer & Digital,Hire Of Vehicles and Plant,30028,Contrct Hire & Operating Lease,5018,"As per submission to ITT invitation to Tender for the , contract hire with service and maintenance of , Grounds Maintenance Machi",27/09/2023,0184831,"1,242.40",Revenue,Balmers Garden Machinery,17075,,
Chorley Borough Council,http://statistics.data.gov.uk/id/local-authority/30UE,Tourism,1039,GOVN - Policy & Governance,Publicity - Advertising,40157,Miscellaneous Expenses,5034,extension of CFS coverage,13/09/2023,0184502,"2,000.00",Revenue,Bauer Active Ltd,50574,,
Chorley Borough Council,http://statistics.data.gov.uk/id/local-authority/30UE,Tourism,1039,GOVN - Policy & Governance,Tools & Equipment - Hire,40004,"Equipment, Furniture & Materia",5023,Ride provision for CFS,13/09/2023,0184505,850.00,Revenue,Bewleys,76203,,
Chorley Borough Council,http://statistics.data.gov.uk/id/local-authority/30UE,Development Control,1091,PLAN - Planning & Development,Professional Fees,40063,Services,5027,"Growth Lancashire, Provision of heritage advice in respect of planning applications, 1 April 2023  31 March 2024",06/09/2023,0184320,"3,567.04",Revenue,Blackburn with Darwen Borough Council,21000,,
Chorley Borough Council,http://statistics.data.gov.uk/id/local-authority/30UE,Central Support Services,1009,GOVN - Policy & Governance,External Contractor,40198,Miscellaneous Expenses,5034,Payroll contract for Chorley Council 2022/2023,20/09/2023,0182263,"7,789.90",Revenue,Blackpool Borough Council,16518,,
Chorley Borough Council,http://statistics.data.gov.uk/id/local-authority/30UE,Central Support Services,1009,GOVN - Policy & Governance,External Contractor,40198,Miscellaneous Expenses,5034,Payroll ad hoc charges - 2023/24,06/09/2023,0184287,"1,587.60",Revenue,Blackpool Borough Council,16518,,
Chorley Borough Council,http://statistics.data.gov.uk/id/local-authority/30UE,Central Support Services,1009,GOVN - Policy & Governance,External Contractor,40198,Miscellaneous Expenses,5034,Payroll ad hoc charges - 2023/24,06/09/2023,0184288,"7,545.80",Revenue,Blackpool Borough Council,16518,,
Chorley Borough Council,http://statistics.data.gov.uk/id/local-authority/30UE,Economic Development,1096,GROW - Commercial Services,Electricity,20013,Energy Costs,5006,ADDRESS REDACTED,27/09/2023,0184688,718.00,Revenue,British Gas Business,22242,,
Chorley Borough Council,http://statistics.data.gov.uk/id/local-authority/30UE,Business Support,1095,GROW - Commercial Services,Electricity,20013,Energy Costs,5006,ADDRESS REDACTED,13/09/2023,0184703,"1,428.58",Revenue,British Gas Business,22242,,
Chorley Borough Council,http://statistics.data.gov.uk/id/local-authority/30UE,Unapportionable Central OHeads,1009,GROW - Commercial Services,General Repairs - Reactive,20004,Repairs Maintenance & Alts,5005,CBC Community Centres Reactive General Building Repair Works,13/09/2023,0183734,713.81,Revenue,Bryan Lee Building Contractors Ltd,78160,,
Chorley Borough Council,http://statistics.data.gov.uk/id/local-authority/30UE,Unapportionable Central OHeads,1009,GROW - Commercial Services,General Repairs - Reactive,20004,Repairs Maintenance & Alts,5005,Town Hall Reactive General Building Repair Works,13/09/2023,0183735,"1,137.34",Revenue,Bryan Lee Building Contractors Ltd,78160,,
Chorley Borough Council,http://statistics.data.gov.uk/id/local-authority/30UE,Unapportionable Central OHeads,1009,GROW - Commercial Services,General Repairs - Reactive,20004,Repairs Maintenance & Alts,5005,Put up scaffolding and clean out the hopper at the Town Hall.,13/09/2023,0184129,"1,322.50",Revenue,Bryan Lee Building Contractors Ltd,78160,,
Chorley Borough Council,http://statistics.data.gov.uk/id/local-authority/30UE,Capital,Capital,GROW - Commercial Services,Other Capital Related Fees,03024,Capital Expenditure,Capital,West Way Sports Hub Install timber posts and build a feather edge bin store1,13/09/2023,0184131,"1,910.00",Capital,Bryan Lee Building Contractors Ltd,78160,,
Chorley Borough Council,http://statistics.data.gov.uk/id/local-authority/30UE,Business Support,1095,GROW - Commercial Services,General Repairs - Reactive,20004,Repairs Maintenance & Alts,5005,Market Walk Extension Reactive General Building Repair Works,13/09/2023,0184142,988.00,Revenue,Bryan Lee Building Contractors Ltd,78160,,
Chorley Borough Council,http://statistics.data.gov.uk/id/local-authority/30UE,Unapportionable Central OHeads,1009,GROW - Commercial Services,General Repairs - Reactive,20004,Repairs Maintenance & Alts,5005,CBC Housing Reactive General Building Repair Works,13/09/2023,0184143,"4,372.00",Revenue,Bryan Lee Building Contractors Ltd,78160,,
Chorley Borough Council,http://statistics.data.gov.uk/id/local-authority/30UE,Unapportionable Central OHeads,1009,GROW - Commercial Services,General Repairs - Reactive,20004,Repairs Maintenance & Alts,5005,Union Street Reactive General Building Repair Works,13/09/2023,0184183,"2,159.00",Revenue,Bryan Lee Building Contractors Ltd,78160,,
Chorley Borough Council,http://statistics.data.gov.uk/id/local-authority/30UE,Unapportionable Central OHeads,1009,GROW - Commercial Services,General Repairs - Reactive,20004,Repairs Maintenance & Alts,5005,CBC Parks Reactive General Building Repair Works,13/09/2023,0184215,783.69,Revenue,Bryan Lee Building Contractors Ltd,78160,,
Chorley Borough Council,http://statistics.data.gov.uk/id/local-authority/30UE,Unapportionable Central OHeads,1009,GROW - Commercial Services,General Repairs - Reactive,20004,Repairs Maintenance & Alts,5005,CBC Parks Reactive General Building Repair Works,13/09/2023,0184216,"1,438.48",Revenue,Bryan Lee Building Contractors Ltd,78160,,
Chorley Borough Council,http://statistics.data.gov.uk/id/local-authority/30UE,Unapportionable Central OHeads,1009,GROW - Commercial Services,General Repairs - Reactive,20004,Repairs Maintenance & Alts,5005,CBC Housing Reactive General Building Repair Works,13/09/2023,0184217,"2,328.52",Revenue,Bryan Lee Building Contractors Ltd,78160,,
Chorley Borough Council,http://statistics.data.gov.uk/id/local-authority/30UE,Unapportionable Central OHeads,1009,GROW - Commercial Services,General Repairs - Reactive,20004,Repairs Maintenance & Alts,5005,CBC Housing Reactive General Building Repair Works,13/09/2023,0184218,"1,768.81",Revenue,Bryan Lee Building Contractors Ltd,78160,,
Chorley Borough Council,http://statistics.data.gov.uk/id/local-authority/30UE,Unapportionable Central OHeads,1009,GROW - Commercial Services,General Repairs - Reactive,20004,Repairs Maintenance & Alts,5005,CBC Housing Reactive General Building Repair Works,13/09/2023,0184219,591.45,Revenue,Bryan Lee Building Contractors Ltd,78160,,
Chorley Borough Council,http://statistics.data.gov.uk/id/local-authority/30UE,Unapportionable Central OHeads,1009,GROW - Commercial Services,General Repairs - Reactive,20004,Repairs Maintenance & Alts,5005,CBC Parks Buildings Reactive General Building Repair Works,13/09/2023,0184221,"1,185.31",Revenue,Bryan Lee Building Contractors Ltd,78160,,
Chorley Borough Council,http://statistics.data.gov.uk/id/local-authority/30UE,Business Support,1095,GROW - Commercial Services,General Repairs - Reactive,20004,Repairs Maintenance & Alts,5005,Primrose Gardens Reactive General Building Repair Works,13/09/2023,0184354,"3,042.30",Revenue,Bryan Lee Building Contractors Ltd,78160,,
Chorley Borough Council,http://statistics.data.gov.uk/id/local-authority/30UE,Unapportionable Central OHeads,1009,GROW - Commercial Services,General Repairs - Reactive,20004,Repairs Maintenance & Alts,5005,CBC Community Centres Reactive General Building Repair Works,13/09/2023,0184399,979.38,Revenue,Bryan Lee Building Contractors Ltd,78160,,
Chorley Borough Council,http://statistics.data.gov.uk/id/local-authority/30UE,Unapportionable Central OHeads,1009,GROW - Commercial Services,General Repairs - Reactive,20004,Repairs Maintenance & Alts,5005,CBC Market Reactive General Building Repair Works,20/09/2023,0184479,"1,128.00",Revenue,Bryan Lee Building Contractors Ltd,78160,,
Chorley Borough Council,http://statistics.data.gov.uk/id/local-authority/30UE,Business Support,1095,GROW - Commercial Services,General Repairs - Reactive,20004,Repairs Maintenance & Alts,5005,Tatton Gardens Reactive General Building Repair Works,20/09/2023,0184513,"6,696.13",Revenue,Bryan Lee Building Contractors Ltd,78160,,
Chorley Borough Council,http://statistics.data.gov.uk/id/local-authority/30UE,Central Support Services,1009,GOVN - Policy & Governance,Legal Fees,40171,Miscellaneous Expenses,5034,NAME REDACTED Closure Order Counsel Advising in Conference; 4 Hours including Preparation,20/09/2023,0184647,700.00,Revenue,Brynmor Adams,89564,,
Chorley Borough Council,http://statistics.data.gov.uk/id/local-authority/30UE,Homelessness,1075,EARL - Communities,External Contractor,40198,Miscellaneous Expenses,5034,AFS contract Q1 and Q2,06/09/2023,0184328,"12,145.00",Revenue,Calico Enterprise,73338,,
Chorley Borough Council,http://statistics.data.gov.uk/id/local-authority/30UE,Central Support Services,1009,CUST - Customer & Digital,Misc Expenses,40200,Miscellaneous Expenses,5034,Civic/Town Hall agreement,27/09/2023,0185081,"1,114.75",Revenue,Canon (UK) Ltd,17492,,
Chorley Borough Council,http://statistics.data.gov.uk/id/local-authority/30UE,Parking Services,1066,GROW - Commercial Services,External Contractors,50008,Private Contractors,5042,"Processing 075, , Processing 076, , Processing 077, , Processing 079, , Processing 080, , Processing 085, , Processing 086, , MIP",20/09/2023,0184649,843.11,Revenue,Chipside Ltd,22063,,
Chorley Borough Council,http://statistics.data.gov.uk/id/local-authority/30UE,Regulatory Services,1048,PLAN - Planning & Development,Taxi Testing & Vehicle Safety Report,40234,Services,5027,MOT and taxi test,13/09/2023,0184496,570.60,Revenue,Chorley Autocare Ltd,17110,,
Chorley Borough Council,http://statistics.data.gov.uk/id/local-authority/30UE,Recreation & Sport,1037,GOVN - Policy & Governance,External Contractors,50008,Private Contractors,5042,Add Subsidy Payment,27/09/2023,0184967,"1,122,000.00",Revenue,Chorley Leisure Ltd,83376,,
Chorley Borough Council,http://statistics.data.gov.uk/id/local-authority/30UE,Homelessness,1075,EARL - Communities,Core Funding Grants,40133,Grants and Subscriptions,5031,New Burdens Funding - Delivery of Domestic Abuse Services,13/09/2023,0184516,"8,000.00",Revenue,Chorley Womens Centre,17036,,
Chorley Borough Council,http://statistics.data.gov.uk/id/local-authority/30UE,Central Support Services,1009,EARL - Communities,Children's Activities,40188,Miscellaneous Expenses,5034,Co-ordination and delivery of summer Chorley HAF programme 2023 as per grant agreement,06/09/2023,0184441,"31,818.88",Revenue,Chorley Youth Zone,77339,,
Chorley Borough Council,http://statistics.data.gov.uk/id/local-authority/30UE,Central Support Services,1009,EARL - Communities,Children's Activities,40188,Miscellaneous Expenses,5034,Co-ordination and delivery of summer Chorley HAF programme 2023 as per grant agreement,20/09/2023,0184517,"47,728.31",Revenue,Chorley Youth Zone,77339,,
Chorley Borough Council,http://statistics.data.gov.uk/id/local-authority/30UE,Tourism,1039,GOVN - Policy & Governance,Professional Fees,40063,Services,5027,"First Aid cover at events in 2023/24, , Picnic in the Park - 6 May, Chorley 10K - 7 May, A Taste of Chorley - 3-4 June, Chorley F",20/09/2023,0183493,"1,300.00",Revenue,Chorley`s Angels Community Group,63882,,
Chorley Borough Council,http://statistics.data.gov.uk/id/local-authority/30UE,Central Support Services,1009,CUST - Customer & Digital,ICT Software Implementation,40114,Communication and Computing,5028,"Whitelisting services, IP address changes",20/09/2023,0183387,"1,555.00",Revenue,Civica UK Limited,17463,,
Chorley Borough Council,http://statistics.data.gov.uk/id/local-authority/30UE,Central Support Services,1009,CUST - Customer & Digital,IT Software - Annual Licences,40101,Communication and Computing,5028,"Business Unit: LG - Payments, Contract Reference: DCHO06 - PAY0384CHO-A, , Product/ Service Description: , Chorley Borough Counci",20/09/2023,0184068,"17,675.00",Revenue,Civica UK Limited,17463,,
Chorley Borough Council,http://statistics.data.gov.uk/id/local-authority/30UE,Homelessness,1075,EARL - Communities,Grants - Tenant Participation,40142,Grants and Subscriptions,5031,,20/09/2023,0184742,500.00,Revenue,Claire Pilkington,85424,,
Chorley Borough Council,http://statistics.data.gov.uk/id/local-authority/30UE,Business Support,1095,GROW - Commercial Services,General Repairs - Reactive,20004,Repairs Maintenance & Alts,5005,Reactive Lifts Repair Works @ Primrose Gardens,13/09/2023,0183417,559.71,Revenue,Classic Lifts Limited,20897,,
Chorley Borough Council,http://statistics.data.gov.uk/id/local-authority/30UE,Central Support Services,1009,CUST - Customer & Digital,Computer Equipment-Maintenance,40105,Communication and Computing,5028,Front of Astley Hall Wi-Fi,20/09/2023,0183389,"5,510.99",Revenue,Core Integrated Solutions,77043,,
Chorley Borough Council,http://statistics.data.gov.uk/id/local-authority/30UE,Business Support,1095,GROW - Commercial Services,Gas,20014,Energy Costs,5006,Fleet street,13/09/2023,0184355,"7,191.07",Revenue,Corona Energy Retail 2 Ltd,67249,,
Chorley Borough Council,http://statistics.data.gov.uk/id/local-authority/30UE,Democratic Represent and  Mgnt,1007,GROW - Commercial Services,Gas,20014,Energy Costs,5006,Astley Coachhouse,13/09/2023,0184357,723.22,Revenue,Corona Energy Retail 2 Ltd,67249,,
Chorley Borough Council,http://statistics.data.gov.uk/id/local-authority/30UE,Democratic Represent and  Mgnt,1007,GROW - Commercial Services,Gas,20014,Energy Costs,5006,Water street,13/09/2023,0184358,"35,687.75",Revenue,Corona Energy Retail 2 Ltd,67249,,
Chorley Borough Council,http://statistics.data.gov.uk/id/local-authority/30UE,Democratic Represent and  Mgnt,1007,GROW - Commercial Services,Gas,20014,Energy Costs,5006,Astley Village Comm Centre,13/09/2023,0184360,604.76,Revenue,Corona Energy Retail 2 Ltd,67249,,
Chorley Borough Council,http://statistics.data.gov.uk/id/local-authority/30UE,Recreation & Sport,1037,GROW - Commercial Services,Gas,20014,Energy Costs,5006,Clayton Brook Village Hall,13/09/2023,0184361,678.86,Revenue,Corona Energy Retail 2 Ltd,67249,,
Chorley Borough Council,http://statistics.data.gov.uk/id/local-authority/30UE,Recreation & Sport,1037,GROW - Commercial Services,Gas,20014,Energy Costs,5006,Centre Drive,13/09/2023,0184364,"2,894.52",Revenue,Corona Energy Retail 2 Ltd,67249,,
Chorley Borough Council,http://statistics.data.gov.uk/id/local-authority/30UE,Democratic Represent and  Mgnt,1007,GROW - Commercial Services,Gas,20014,Energy Costs,5006,Astley Hall,13/09/2023,0184365,"1,094.89",Revenue,Corona Energy Retail 2 Ltd,67249,,
Chorley Borough Council,http://statistics.data.gov.uk/id/local-authority/30UE,Central Support Services,1009,GROW - Commercial Services,Gas,20014,Energy Costs,5006,Civic Office,13/09/2023,0184378,"2,500.10",Revenue,Corona Energy Retail 2 Ltd,67249,,
Chorley Borough Council,http://statistics.data.gov.uk/id/local-authority/30UE,Central Support Services,1009,GROW - Commercial Services,Gas,20014,Energy Costs,5006,"West Way, 01 Jul 23 - 01 Aug 23",13/09/2023,0184413,631.20,Revenue,Corona Energy Retail 2 Ltd,67249,,
Chorley Borough Council,http://statistics.data.gov.uk/id/local-authority/30UE,Recreation & Sport,1037,GROW - Commercial Services,Gas,20014,Energy Costs,5006,"Lodge Bank, 01 Jul 23 - 01 Aug 23",13/09/2023,0184415,"10,930.97",Revenue,Corona Energy Retail 2 Ltd,67249,,
Chorley Borough Council,http://statistics.data.gov.uk/id/local-authority/30UE,Homelessness,1075,GROW - Commercial Services,Gas,20014,Energy Costs,5006,"Cotswold House, 01 Jul 23 - 01 Aug 23",13/09/2023,0184420,"1,553.27",Revenue,Corona Energy Retail 2 Ltd,67249,,
Chorley Borough Council,http://statistics.data.gov.uk/id/local-authority/30UE,Capital,Capital,EARL - Communities,Grants,03002,Capital Expenditure,Capital,ADDRESS REDACTED,06/09/2023,0184402,"10,521.00",Capital,D J Bathing,78482,,
Chorley Borough Council,http://statistics.data.gov.uk/id/local-authority/30UE,Capital,Capital,EARL - Communities,Grants,03002,Capital Expenditure,Capital,23/00048/CAG,20/09/2023,0184690,"6,060.00",Capital,D J Bathing,78482,,
Chorley Borough Council,http://statistics.data.gov.uk/id/local-authority/30UE,Homelessness,1075,EARL - Communities,Grants - Tenant Participation,40142,Grants and Subscriptions,5031,,20/09/2023,0184749,500.00,Revenue,Daniel McKeown-Henshall,85588,,
Chorley Borough Council,http://statistics.data.gov.uk/id/local-authority/30UE,Planning Policy,1092,PLAN - Planning & Development,Consultants` Fees,40077,Services,5027,Consultancy support in relation to neighbourhood planning pilot study.,13/09/2023,0184343,"9,450.00",Revenue,Edward Taylor,87071,,
Chorley Borough Council,http://statistics.data.gov.uk/id/local-authority/30UE,Business Support,1095,GROW - Commercial Services,General Repairs - Reactive,20004,Repairs Maintenance & Alts,5005,MW Market Walk - General Building Reactive Repairs,13/09/2023,0184482,"9,428.43",Revenue,EFT Construction,78195,,
Chorley Borough Council,http://statistics.data.gov.uk/id/local-authority/30UE,Unapportionable Central OHeads,1009,GROW - Commercial Services,General Repairs - Reactive,20004,Repairs Maintenance & Alts,5005,Toilets - General Building Reactive Repairs,27/09/2023,0184678,534.07,Revenue,EFT Construction,78195,,
Chorley Borough Council,http://statistics.data.gov.uk/id/local-authority/30UE,Unapportionable Central OHeads,1009,GROW - Commercial Services,General Repairs - Reactive,20004,Repairs Maintenance & Alts,5005,sports pitches and pavilions - General Building Reactive Repairs,27/09/2023,0184679,712.58,Revenue,EFT Construction,78195,,
Chorley Borough Council,http://statistics.data.gov.uk/id/local-authority/30UE,Unapportionable Central OHeads,1009,GROW - Commercial Services,General Repairs - Reactive,20004,Repairs Maintenance & Alts,5005,Westway - General Building Reactive Repairs,27/09/2023,0184681,595.60,Revenue,EFT Construction,78195,,
Chorley Borough Council,http://statistics.data.gov.uk/id/local-authority/30UE,Unapportionable Central OHeads,1009,GROW - Commercial Services,General Repairs - Reactive,20004,Repairs Maintenance & Alts,5005,Market - General Building Reactive Repairs,27/09/2023,0184682,"2,529.53",Revenue,EFT Construction,78195,,
Chorley Borough Council,http://statistics.data.gov.uk/id/local-authority/30UE,Unapportionable Central OHeads,1009,GROW - Commercial Services,General Repairs - Reactive,20004,Repairs Maintenance & Alts,5005,Commercial - General Building Reactive Repairs,27/09/2023,0184683,939.00,Revenue,EFT Construction,78195,,
Chorley Borough Council,http://statistics.data.gov.uk/id/local-authority/30UE,Unapportionable Central OHeads,1009,GROW - Commercial Services,General Repairs - Reactive,20004,Repairs Maintenance & Alts,5005,Astley Hall and Buildings - General Building Reactive Repairs,27/09/2023,0184684,"2,370.57",Revenue,EFT Construction,78195,,
Chorley Borough Council,http://statistics.data.gov.uk/id/local-authority/30UE,Business Support,1095,GROW - Commercial Services,General Repairs - Reactive,20004,Repairs Maintenance & Alts,5005,Strawberry Fields - General Building Reactive Repairs,27/09/2023,0184685,648.34,Revenue,EFT Construction,78195,,
Chorley Borough Council,http://statistics.data.gov.uk/id/local-authority/30UE,Business Support,1095,GROW - Commercial Services,General Repairs - Reactive,20004,Repairs Maintenance & Alts,5005,MW Ext Market Walk Extension - General Building Reactive Repairs,27/09/2023,0184686,"1,770.17",Revenue,EFT Construction,78195,,
Chorley Borough Council,http://statistics.data.gov.uk/id/local-authority/30UE,Homelessness,1075,GROW - Commercial Services,Laundry,40042,"Clothing, Uniforms and Laundry",5025,"In respect of Laundry services for period , 01/04/23 - 31/03/2024, For , Cotswold Supported housing, Cotswold Rd , Chorley",13/09/2023,0184520,"1,277.62",Revenue,Elis UK Ltd,20799,,
Chorley Borough Council,http://statistics.data.gov.uk/id/local-authority/30UE,Business Support,1095,GROW - Commercial Services,Internet Charges,40104,Communication and Computing,5028,"Operate, Platform and Calls & IP invoices for financial year April 2023 to March 2024",27/09/2023,0184990,"2,450.00",Revenue,Essensys Ltd,77836,,
Chorley Borough Council,http://statistics.data.gov.uk/id/local-authority/30UE,Business Support,1095,GROW - Commercial Services,Planned Maintenance,20006,Repairs Maintenance & Alts,5005,"Testing of walkway, guardrail and cable system at Market Walk Extension",20/09/2023,0184521,500.00,Revenue,Eurosafe Solutions Limited,66302,,
Chorley Borough Council,http://statistics.data.gov.uk/id/local-authority/30UE,Unapportionable Central OHeads,1009,GROW - Commercial Services,Planned Maintenance,20006,Repairs Maintenance & Alts,5005,Flagpole testing at Coronation Recreation Ground,27/09/2023,0184794,"1,390.00",Revenue,Eurosafe Solutions Limited,66302,,
Chorley Borough Council,http://statistics.data.gov.uk/id/local-authority/30UE,Tourism,1039,GOVN - Policy & Governance,Professional Fees,40063,Services,5027,Provision of acts and management of the music night at Chorley Flower Show,13/09/2023,0183726,"6,595.00",Revenue,Event Chorley,85464,,
Chorley Borough Council,http://statistics.data.gov.uk/id/local-authority/30UE,Tourism,1039,GOVN - Policy & Governance,Professional Fees,40063,Services,5027,"Cost for CFS entertainment, , Including acts and management , , Minus the fee Chorfest paid for Marquee hire",13/09/2023,0183727,570.00,Revenue,Event Chorley,85464,,
Chorley Borough Council,http://statistics.data.gov.uk/id/local-authority/30UE,Recreation & Sport,1037,GROW - Commercial Services,Grants to Voluntary Organisations,40124,Grants and Subscriptions,5031,Annual maintenance grant for Fairview youth & Community Association,13/09/2023,0184389,"8,000.00",Revenue,Fairview Youth & Community Association,20589,,
Chorley Borough Council,http://statistics.data.gov.uk/id/local-authority/30UE,Tourism,1039,GOVN - Policy & Governance,Tools & Equipment - Hire,40004,"Equipment, Furniture & Materia",5023,Fire estinguisher refuel and re service,20/09/2023,0184849,546.00,Revenue,Field and Lawn Ltd,74977,,
Chorley Borough Council,http://statistics.data.gov.uk/id/local-authority/30UE,Homelessness,1075,EARL - Communities,Grants - Tenant Participation,40142,Grants and Subscriptions,5031,,20/09/2023,0184743,500.00,Revenue,Francis Marsden,85643,,
Chorley Borough Council,http://statistics.data.gov.uk/id/local-authority/30UE,Building Control,1090,PLAN - Planning & Development,Professional Fees,40063,Services,5027,Contracter fees for NAME REDACTED,20/09/2023,0184803,"2,400.00",Revenue,Fraser Building Management Services Limited,89405,,
Chorley Borough Council,http://statistics.data.gov.uk/id/local-authority/30UE,Central Support Services,1009,EARL - Communities,Children's Activities,40188,Miscellaneous Expenses,5034,inst 2 of 2 summer 2023 programme,20/09/2023,0184522,"1,024.00",Revenue,Galaxy Cheerleading Club,78261,,
Chorley Borough Council,http://statistics.data.gov.uk/id/local-authority/30UE,Tourism,1039,GOVN - Policy & Governance,Tools & Equipment - Hire,40004,"Equipment, Furniture & Materia",5023,"Replacement of 2 x missing turn table trucks. , 121.00p for 3148123 and 395.00p for 3480674",13/09/2023,0184523,516.00,Revenue,Gap Group Ltd,17190,,
Chorley Borough Council,http://statistics.data.gov.uk/id/local-authority/30UE,Homelessness,1075,EARL - Communities,Grants - Tenant Participation,40142,Grants and Subscriptions,5031,,20/09/2023,0184735,500.00,Revenue,Gary MacFarlane,85416,,
Chorley Borough Council,http://statistics.data.gov.uk/id/local-authority/30UE,Homelessness,1075,EARL - Communities,Grants - Tenant Participation,40142,Grants and Subscriptions,5031,,20/09/2023,0184736,500.00,Revenue,Georgia Louise Cann,85496,,
Chorley Borough Council,http://statistics.data.gov.uk/id/local-authority/30UE,Homelessness,1075,EARL - Communities,Grants - Tenant Participation,40142,Grants and Subscriptions,5031,,20/09/2023,0184739,500.00,Revenue,Gillian Partington,85419,,
Chorley Borough Council,http://statistics.data.gov.uk/id/local-authority/30UE,Service Management & Support,1009,CUST - Customer & Digital,Hire Of Vehicles and Plant,30028,Contrct Hire & Operating Lease,5018,"Extension of the sweepers, 12 month Contract - Start date 02/09/22, , Johnston CN101 (VIN REDACTED) � contract hire only - 1,290.17 ",06/09/2023,0184290,"6,153.73",Revenue,Go Plant Fleet Services Ltd,80857,,
Chorley Borough Council,http://statistics.data.gov.uk/id/local-authority/30UE,Central Support Services,1009,CUST - Customer & Digital,Printing,40043,"Printing, Stationery & General",5026,Garden Waste Subscription payments 2023/24,27/09/2023,0184847,"1,427.67",Revenue,GoCardless,77457,,
Chorley Borough Council,http://statistics.data.gov.uk/id/local-authority/30UE,Central Support Services,1009,PLAN - Planning & Development,Vandalism Repairs,20005,Repairs Maintenance & Alts,5005,Grafitti removal contract August 2023 onging,06/09/2023,0184428,670.00,Revenue,Graffiti Away Ltd,78340,,
Chorley Borough Council,http://statistics.data.gov.uk/id/local-authority/30UE,Central Support Services,1009,PLAN - Planning & Development,Vandalism Repairs,20005,Repairs Maintenance & Alts,5005,Grafitti removal contract August 2023 onging,27/09/2023,0184945,800.00,Revenue,Graffiti Away Ltd,78340,,
Chorley Borough Council,http://statistics.data.gov.uk/id/local-authority/30UE,Capital,Capital,GROW - Commercial Services,Main Contractor,03007,Capital Expenditure,Capital,New supply of required furniture for Cafe refurbishment at All Seasons Leisure Centre,13/09/2023,0183924,"1,776.00",Capital,Grafton Projects Limited,76545,,
Chorley Borough Council,http://statistics.data.gov.uk/id/local-authority/30UE,Capital,Capital,GROW - Commercial Services,Main Contractor,03007,Capital Expenditure,Capital,New supply of required furniture for Cafe refurbishment at All Seasons Leisure Centre,13/09/2023,0184133,"2,781.60",Capital,Grafton Projects Limited,76545,,
Chorley Borough Council,http://statistics.data.gov.uk/id/local-authority/30UE,Unapportionable Central OHeads,1009,GOVN - Policy & Governance,Publicity - Advertising,40157,Miscellaneous Expenses,5034,Monthly advert in Buckshaw Village Community Magazine from July 2023 to June 2024,20/09/2023,0184728,"2,220.00",Revenue,Green Man Marketing,73050,,
Chorley Borough Council,http://statistics.data.gov.uk/id/local-authority/30UE,Democratic Represent and  Mgnt,1007,GOVN - Policy & Governance,Other Contributions,40145,Grants and Subscriptions,5031,Mayor Charity Donation,06/09/2023,0184248,"2,000.00",Revenue,Headway Central Lancashire,89462,,
Chorley Borough Council,http://statistics.data.gov.uk/id/local-authority/30UE,Central Support Services,1009,EARL - Communities,Misc Expenses,40200,Miscellaneous Expenses,5034,Adult health and wellbeing grant fund,20/09/2023,0184697,650.00,Revenue,Help The Homeless (Chorley),16716,,
Chorley Borough Council,http://statistics.data.gov.uk/id/local-authority/30UE,Capital,Capital,GROW - Commercial Services,Other Contractor,03012,Capital Expenditure,Capital,Fire engineers report of redevelopment works at Strawberry Fields,13/09/2023,0183926,"2,500.00",Capital,Hoare Lea LLP,78513,,
Chorley Borough Council,http://statistics.data.gov.uk/id/local-authority/30UE,Central Support Services,1009,CUST - Customer & Digital,ICT Software Implementation,40114,Communication and Computing,5028,Build an Azure VM and to configure a test webchat environment,20/09/2023,0183578,750.00,Revenue,Hybrit LLP,77925,,
Chorley Borough Council,http://statistics.data.gov.uk/id/local-authority/30UE,Central Support Services,1009,CUST - Customer & Digital,Telephones - Other,40085,Communication and Computing,5028,Hybrit SIP charges August 23,27/09/2023,0184334,747.50,Revenue,Hybrit LLP,77925,,
Chorley Borough Council,http://statistics.data.gov.uk/id/local-authority/30UE,Central Support Services,1009,CUST - Customer & Digital,Telephones - Other,40085,Communication and Computing,5028,Hybrit SIP charges July 23,27/09/2023,0184335,747.50,Revenue,Hybrit LLP,77925,,
Chorley Borough Council,http://statistics.data.gov.uk/id/local-authority/30UE,Central Support Services,1009,CUST - Customer & Digital,IT Consultancy Fees,40223,Services,5027,STC for Intune Consultancy,20/09/2023,0184391,750.00,Revenue,Hybrit LLP,77925,,
Chorley Borough Council,http://statistics.data.gov.uk/id/local-authority/30UE,Control Accounts,Control,GROW - Commercial Services,Manual Control Account,00001,Balance Sheet,Balance,,27/09/2023,0184851,"64,937.41",Revenue,Iceland Foods Limited,89567,,
Chorley Borough Council,http://statistics.data.gov.uk/id/local-authority/30UE,Central Support Services,1009,GOVN - Policy & Governance,Refuse Collection,20037,Cleaning and Domestic Supplies,5012,quarterly charges for all council sites for hygiene services 3800,20/09/2023,0184481,"2,982.78",Revenue,Initial,78488,,
Chorley Borough Council,http://statistics.data.gov.uk/id/local-authority/30UE,Control Accounts,Control,System,Manual Control Account,00001,Balance Sheet,Balance,,06/09/2023,0184286,"2,608.00",Revenue,Inland Revenue 065py00102078,17445,,
Chorley Borough Council,http://statistics.data.gov.uk/id/local-authority/30UE,Community Development,1097,GROW - Commercial Services,Rent/Hire Of Premises,20017,Premises Rents,5007,Annual Rent for 35-37 Market Street,20/09/2023,0184664,"7,218.75",Revenue,J R Keys,17124,,
Chorley Borough Council,http://statistics.data.gov.uk/id/local-authority/30UE,Central Support Services,1009,EARL - Communities,Children's Activities,40188,Miscellaneous Expenses,5034,Delivery of Chorley HAF Programme Summer 23 as per grant agreement,20/09/2023,0184526,"8,192.00",Revenue,Jam Coding Ltd,89306,,
Chorley Borough Council,http://statistics.data.gov.uk/id/local-authority/30UE,Tourism,1039,GOVN - Policy & Governance,Publicity - Advertising,40157,Miscellaneous Expenses,5034,1 page in PR Pointer and The Handbook,20/09/2023,0184773,578.00,Revenue,Jam Design and Publications Ltd,76061,,
Chorley Borough Council,http://statistics.data.gov.uk/id/local-authority/30UE,Homelessness,1075,EARL - Communities,Grants - Tenant Participation,40142,Grants and Subscriptions,5031,,20/09/2023,0184746,500.00,Revenue,Jason O`Flaherty,85502,,
Chorley Borough Council,http://statistics.data.gov.uk/id/local-authority/30UE,Central Support Services,1009,EARL - Communities,Misc Expenses,40200,Miscellaneous Expenses,5034,Adult health and wellbeing fund,20/09/2023,0184694,650.00,Revenue,Jennings Boxing Community Association,57869,,
Chorley Borough Council,http://statistics.data.gov.uk/id/local-authority/30UE,Unapportionable Central OHeads,1009,GROW - Commercial Services,General Repairs - Reactive,20004,Repairs Maintenance & Alts,5005,"Yarrow Valley / Birkacre, , Emergency works to stem the leak on the Big Lodge (22/04) and initial repair works",20/09/2023,0184140,"57,900.97",Revenue,John Wade Groundworks Ltd,76676,,
Chorley Borough Council,http://statistics.data.gov.uk/id/local-authority/30UE,Capital,Capital,PLAN - Planning & Development,Main Contractor,03007,Capital Expenditure,Capital,Construction of a Sports Pavilion at Wigan Lane Playing Fields with associated infrastructure and landscaping as set out in the t,13/09/2023,0184274,"21,478.91",Capital,John Wade Groundworks Ltd,76676,,
Chorley Borough Council,http://statistics.data.gov.uk/id/local-authority/30UE,Homelessness,1075,EARL - Communities,Grants - Tenant Participation,40142,Grants and Subscriptions,5031,,20/09/2023,0184738,500.00,Revenue,Joyce Harasimiuk,85418,,
Chorley Borough Council,http://statistics.data.gov.uk/id/local-authority/30UE,Economic Development,1096,GROW - Commercial Services,Refuse Collection,20037,Cleaning and Domestic Supplies,5012,"Market Walk/Market Walk Extension/Markets/Calico Lounge/Reel Cinema Waste Removal 01.04.2023 - 31.03.2024:, , Market Walk YARD 1 ",20/09/2023,0184489,"1,989.00",Revenue,Kenny Waste Management Ltd,88641,,
Chorley Borough Council,http://statistics.data.gov.uk/id/local-authority/30UE,Homelessness,1075,EARL - Communities,Grants - Tenant Participation,40142,Grants and Subscriptions,5031,,20/09/2023,0184748,500.00,Revenue,Kevin Eardley,85644,,
Chorley Borough Council,http://statistics.data.gov.uk/id/local-authority/30UE,Service Management & Support,1009,CUST - Customer & Digital,Protective Clothing,40040,"Clothing, Uniforms and Laundry",5025,"Quantity x 10- Size Medium, x 10- Size Large, x 10- Size XL, Regatta Thor III Zip Fleece Jacket 10RE500, COLOUR RED, 380gm 100% P",20/09/2023,0184539,603.10,Revenue,Key Engineering & Hygene Supplies,51615,,
Chorley Borough Council,http://statistics.data.gov.uk/id/local-authority/30UE,Corporate Management,1008,EARL - Communities,Other Contributions,40145,Grants and Subscriptions,5031,Household support Fund 4 - 1st payment,06/09/2023,0184292,"10,000.00",Revenue,Key Unlocking Futures Limited,61252,,
Chorley Borough Council,http://statistics.data.gov.uk/id/local-authority/30UE,Business Support,1095,GROW - Commercial Services,General Repairs - Reactive,20004,Repairs Maintenance & Alts,5005,"Strawberry Fields Hub (PR7 1PS) :, , Condensing Unit",20/09/2023,0184266,"8,725.12",Revenue,Kool Planet Limited,22033,,
Chorley Borough Council,http://statistics.data.gov.uk/id/local-authority/30UE,Business Support,1095,GROW - Commercial Services,General Repairs - Reactive,20004,Repairs Maintenance & Alts,5005,"VRF Replacement at DOP, Strawberry Fields",20/09/2023,0184429,"5,999.99",Revenue,Kool Planet Limited,22033,,
Chorley Borough Council,http://statistics.data.gov.uk/id/local-authority/30UE,Control Accounts,Control,GOVN - Policy & Governance,General Balances,00100,Balance Sheet,Balance,Labour Councillors Association - Aug 23 Monthly Deductions from Payroll,20/09/2023,0184626,"1,882.62",Revenue,Labour Councillors Association,17577,,
Chorley Borough Council,http://statistics.data.gov.uk/id/local-authority/30UE,Capital,Capital,EARL - Communities,Grants,03002,Capital Expenditure,Capital,ADDRESS REDACTED,13/09/2023,0184543,"2,425.63",Capital,Lancashire County Council,17758,,
Chorley Borough Council,http://statistics.data.gov.uk/id/local-authority/30UE,Central Support Services,1009,CUST - Customer & Digital,Clinical Waste Collection,50007,Private Contractors,5042,Domestic clinical waste collections 2023/24,06/09/2023,0184311,"2,242.38",Revenue,Lancashire Environmental Services,82309,,
Chorley Borough Council,http://statistics.data.gov.uk/id/local-authority/30UE,Unapportionable Central OHeads,1009,GROW - Commercial Services,General Repairs - Reactive,20004,Repairs Maintenance & Alts,5005,"Reactive Gas, Air Conditioning and Plumbing Repair Works @",13/09/2023,0183555,798.63,Revenue,Lancashire Gas Services Ltd,78192,,
Chorley Borough Council,http://statistics.data.gov.uk/id/local-authority/30UE,Business Support,1095,GROW - Commercial Services,General Repairs - Reactive,20004,Repairs Maintenance & Alts,5005,"Reactive Gas, Air Conditioning and Plumbing Repair Works @ Strawberry Fields",13/09/2023,0183559,"2,839.18",Revenue,Lancashire Gas Services Ltd,78192,,
Chorley Borough Council,http://statistics.data.gov.uk/id/local-authority/30UE,Unapportionable Central OHeads,1009,GROW - Commercial Services,General Repairs - Reactive,20004,Repairs Maintenance & Alts,5005,"Reactive Gas, Air Conditioning and Plumbing Repair Works @ CBC Community Centres",13/09/2023,0183903,"1,705.02",Revenue,Lancashire Gas Services Ltd,78192,,
Chorley Borough Council,http://statistics.data.gov.uk/id/local-authority/30UE,Unapportionable Central OHeads,1009,GROW - Commercial Services,General Repairs - Reactive,20004,Repairs Maintenance & Alts,5005,"Reactive Gas, Air Conditioning and Plumbing Repair Works @ Cotswold House",13/09/2023,0183938,790.26,Revenue,Lancashire Gas Services Ltd,78192,,
Chorley Borough Council,http://statistics.data.gov.uk/id/local-authority/30UE,Business Support,1095,GROW - Commercial Services,General Repairs - Reactive,20004,Repairs Maintenance & Alts,5005,"Reactive Gas, Air Conditioning and Plumbing Repair Works @ Strawberry Fields",13/09/2023,0183940,"1,749.76",Revenue,Lancashire Gas Services Ltd,78192,,
Chorley Borough Council,http://statistics.data.gov.uk/id/local-authority/30UE,Unapportionable Central OHeads,1009,GROW - Commercial Services,General Repairs - Reactive,20004,Repairs Maintenance & Alts,5005,"Reactive Gas, Air Conditioning and Plumbing Repair Works @ CBC Community Centres",13/09/2023,0183950,585.53,Revenue,Lancashire Gas Services Ltd,78192,,
Chorley Borough Council,http://statistics.data.gov.uk/id/local-authority/30UE,Business Support,1095,GROW - Commercial Services,General Repairs - Reactive,20004,Repairs Maintenance & Alts,5005,"Reactive Gas, Air Conditioning and Plumbing Repair Works @ Strawberry Fields",13/09/2023,0183952,844.08,Revenue,Lancashire Gas Services Ltd,78192,,
Chorley Borough Council,http://statistics.data.gov.uk/id/local-authority/30UE,Business Support,1095,GROW - Commercial Services,General Repairs - Reactive,20004,Repairs Maintenance & Alts,5005,"Reactive Gas, Air Conditioning and Plumbing Repair Works @ Primrose Gardens",20/09/2023,0184619,694.57,Revenue,Lancashire Gas Services Ltd,78192,,
Chorley Borough Council,http://statistics.data.gov.uk/id/local-authority/30UE,Unapportionable Central OHeads,1009,GROW - Commercial Services,General Repairs - Reactive,20004,Repairs Maintenance & Alts,5005,"Reactive Gas, Air Conditioning and Plumbing Repair Works @ Cotswold House",20/09/2023,0184668,"1,220.31",Revenue,Lancashire Gas Services Ltd,78192,,
Chorley Borough Council,http://statistics.data.gov.uk/id/local-authority/30UE,Unapportionable Central OHeads,1009,GROW - Commercial Services,General Repairs - Reactive,20004,Repairs Maintenance & Alts,5005,"Reactive Gas, Air Conditioning and Plumbing Repair Works @ CBC Housing",27/09/2023,0184894,"1,069.31",Revenue,Lancashire Gas Services Ltd,78192,,
Chorley Borough Council,http://statistics.data.gov.uk/id/local-authority/30UE,Tourism,1039,GOVN - Policy & Governance,Misc Expenses,40200,Miscellaneous Expenses,5034,Armed forces day concert at Chorley Town Hall.,06/09/2023,0184387,"1,750.00",Revenue,Leyland Band,89540,,
Chorley Borough Council,http://statistics.data.gov.uk/id/local-authority/30UE,Unapportionable Central OHeads,1009,CUST - Customer & Digital,Professional Fees,14011,Direct Employee Expenses,5001,Empty Homes Review - July 23,27/09/2023,0184970,"3,946.50",Revenue,Liberata (Capacity Grid),67989,,
Chorley Borough Council,http://statistics.data.gov.uk/id/local-authority/30UE,Capital,Capital,EARL - Communities,Grants,03002,Capital Expenditure,Capital,DFG on behalf of Chorley HIA Team,20/09/2023,0184832,696.00,Capital,Liberata UK,20716,,
Chorley Borough Council,http://statistics.data.gov.uk/id/local-authority/30UE,Corporate Management,1008,GROW - Commercial Services,Promotional Expenses,40159,Miscellaneous Expenses,5034,"To provide children`s entertainment for Fun Thursday event at Market Walk on the 3rd August 23 and 31st August 23 , , 10am-4pm",06/09/2023,0181932,"1,100.00",Revenue,Louby Lou Ltd,76335,,
Chorley Borough Council,http://statistics.data.gov.uk/id/local-authority/30UE,Homelessness,1075,EARL - Communities,Grants - Tenant Participation,40142,Grants and Subscriptions,5031,,20/09/2023,0184737,500.00,Revenue,Louise Arnold,85417,,
Chorley Borough Council,http://statistics.data.gov.uk/id/local-authority/30UE,Central Support Services,1009,CUST - Customer & Digital,External Contractor,40198,Miscellaneous Expenses,5034,Phase 2 : Consultancy for plastic bin testing. (ref : Q829 - 2023),06/09/2023,0184260,"3,080.00",Revenue,LPD Lab Services Limited,89245,,
Chorley Borough Council,http://statistics.data.gov.uk/id/local-authority/30UE,Building Control,1090,PLAN - Planning & Development,Agency Staff,13000,Direct Employee Expenses,5001,Agency Fees for NAME REDACTED May 2023 onwards,06/09/2023,0181916,"1,288.00",Revenue,Matchtech,77343,,
Chorley Borough Council,http://statistics.data.gov.uk/id/local-authority/30UE,Building Control,1090,PLAN - Planning & Development,Agency Staff,13000,Direct Employee Expenses,5001,Agency Fees for NAME REDACTED May 2023 onwards,06/09/2023,0182464,"1,243.20",Revenue,Matchtech,77343,,
Chorley Borough Council,http://statistics.data.gov.uk/id/local-authority/30UE,Building Control,1090,PLAN - Planning & Development,Agency Staff,13000,Direct Employee Expenses,5001,Agency Fees for NAME REDACTED May 2023 onwards,06/09/2023,0183308,"1,316.00",Revenue,Matchtech,77343,,
Chorley Borough Council,http://statistics.data.gov.uk/id/local-authority/30UE,Building Control,1090,PLAN - Planning & Development,Agency Staff,13000,Direct Employee Expenses,5001,Agency Fees for NAME REDACTED May 2023 onwards,06/09/2023,0183752,"1,288.00",Revenue,Matchtech,77343,,
Chorley Borough Council,http://statistics.data.gov.uk/id/local-authority/30UE,Building Control,1090,PLAN - Planning & Development,Agency Staff,13000,Direct Employee Expenses,5001,Agency Fees for NAME REDACTED May 2023 onwards,06/09/2023,0184213,"1,344.00",Revenue,Matchtech,77343,,
Chorley Borough Council,http://statistics.data.gov.uk/id/local-authority/30UE,Building Control,1090,PLAN - Planning & Development,Agency Staff,13000,Direct Employee Expenses,5001,Agency Fees for NAME REDACTED May 2023 onwards,06/09/2023,0184381,"1,372.00",Revenue,Matchtech,77343,,
Chorley Borough Council,http://statistics.data.gov.uk/id/local-authority/30UE,Building Control,1090,PLAN - Planning & Development,Agency Staff,13000,Direct Employee Expenses,5001,Agency Fees for NAME REDACTED May 2023 onwards,13/09/2023,0184580,"1,792.00",Revenue,Matchtech,77343,,
Chorley Borough Council,http://statistics.data.gov.uk/id/local-authority/30UE,Building Control,1090,PLAN - Planning & Development,Agency Staff,13000,Direct Employee Expenses,5001,Agency Fees for NAME REDACTED May 2023 onwards,20/09/2023,0184812,"1,372.00",Revenue,Matchtech,77343,,
Chorley Borough Council,http://statistics.data.gov.uk/id/local-authority/30UE,Corporate Management,1008,GROW - Commercial Services,Promotional Expenses,40159,Miscellaneous Expenses,5034,"To provide the children`s fairground ride for Market Walk Fun Thursday @ 250 per day, , 27th July 23, 3rd Aug 23, 10th Aug 23, 1",20/09/2023,0184661,"1,500.00",Revenue,Maxine Hamer,76691,,
Chorley Borough Council,http://statistics.data.gov.uk/id/local-authority/30UE,Business Support,1095,GROW - Commercial Services,General Repairs - Reactive,20004,Repairs Maintenance & Alts,5005,"Market Walk Extension, Reactive Drainage and Groundworks Repair Works",13/09/2023,0184025,560.00,Revenue,Michael Roe,78294,,
Chorley Borough Council,http://statistics.data.gov.uk/id/local-authority/30UE,Unapportionable Central OHeads,1009,GROW - Commercial Services,General Repairs - Reactive,20004,Repairs Maintenance & Alts,5005,Infrastructure Reactive Drainage and Groundworks / Repair Works,13/09/2023,0184294,"1,970.00",Revenue,Michael Roe,78294,,
Chorley Borough Council,http://statistics.data.gov.uk/id/local-authority/30UE,Capital,Capital,EARL - Communities,Grants,03002,Capital Expenditure,Capital,23/00047/CAG,20/09/2023,0184691,"5,448.32",Capital,Mint Northwest Ltd,65607,,
Chorley Borough Council,http://statistics.data.gov.uk/id/local-authority/30UE,Capital,Capital,EARL - Communities,Grants,03002,Capital Expenditure,Capital,23/00108/DFG,20/09/2023,0184692,"6,977.10",Capital,Mint Northwest Ltd,65607,,
Chorley Borough Council,http://statistics.data.gov.uk/id/local-authority/30UE,Capital,Capital,EARL - Communities,Grants,03002,Capital Expenditure,Capital,23/00018/CAG,27/09/2023,0185077,"6,495.94",Capital,Mint Northwest Ltd,65607,,
Chorley Borough Council,http://statistics.data.gov.uk/id/local-authority/30UE,Development Control,1091,PLAN - Planning & Development,Statutory Notices,40160,Miscellaneous Expenses,5034,Planning Public Notices to appear in the Chorley Guardian April 2023 to March 2024,06/09/2023,0184323,670.14,Revenue,National World Publishing Limited,20072,,
Chorley Borough Council,http://statistics.data.gov.uk/id/local-authority/30UE,Tourism,1039,GOVN - Policy & Governance,Publicity - Advertising,40157,Miscellaneous Expenses,5034,"Press Adverts 1/2 page (size 170mm x 265mm wide), Lancashire Post x 2 inserts w/c 10th & 17th, Chorley & Leyland Guardians x 2 in",27/09/2023,0184923,715.12,Revenue,National World Publishing Limited,20072,,
Chorley Borough Council,http://statistics.data.gov.uk/id/local-authority/30UE,Central Support Services,1009,CUST - Customer & Digital,IT Software - Annual Licences,40101,Communication and Computing,5028,"NEC Cloud services, Pro rata charges from 01/03/2023 to 31/08/2023 as per contract 131611",06/09/2023,0184276,"20,324.20",Revenue,NEC Software Solutions UK Ltd,18285,,
Chorley Borough Council,http://statistics.data.gov.uk/id/local-authority/30UE,Central Support Services,1009,CUST - Customer & Digital,IT Consultancy Fees,40223,Services,5027,"3 days� out of hours consultancy for GoLive of Cloud for the following:, - Migration to NEC (1 day), - Merge of S.Ribble & Chorl",20/09/2023,0184295,"6,600.00",Revenue,NEC Software Solutions UK Ltd,18285,,
Chorley Borough Council,http://statistics.data.gov.uk/id/local-authority/30UE,Central Support Services,1009,CUST - Customer & Digital,IT Software - Annual Licences,40101,Communication and Computing,5028,Cloud services - annual payment in advance of he contract anniversary 01.09.2023 to 31.08.24,27/09/2023,0184996,"40,648.70",Revenue,NEC Software Solutions UK Ltd,18285,,
Chorley Borough Council,http://statistics.data.gov.uk/id/local-authority/30UE,Homelessness,1075,EARL - Communities,Grants - Tenant Participation,40142,Grants and Subscriptions,5031,,20/09/2023,0184758,500.00,Revenue,Nicholas J Roden,87102,,
Chorley Borough Council,http://statistics.data.gov.uk/id/local-authority/30UE,Service Management & Support,1009,CUST - Customer & Digital,Supplies-Grounds Maintenance,40025,"Equipment, Furniture & Materia",5023,"As per quotation from NAME REDACTED �	40 litres Nomix dual (5litre boxes) �	100 litres Nomix Conqueror ( 5litre boxes) �	20 litres Clean",06/09/2023,0183730,"1,537.00",Revenue,Nomix Enviro Ltd,82223,,
Chorley Borough Council,http://statistics.data.gov.uk/id/local-authority/30UE,Regulatory Services,1048,EARL - Communities,Tools & Equipment - Purchase,40003,"Equipment, Furniture & Materia",5023,Vans,13/09/2023,0181055,641.76,Revenue,Northgate Vehicle Hire (NW) Ltd,17360,,
Chorley Borough Council,http://statistics.data.gov.uk/id/local-authority/30UE,Regulatory Services,1048,EARL - Communities,Tools & Equipment - Purchase,40003,"Equipment, Furniture & Materia",5023,Vans,20/09/2023,0182191,641.76,Revenue,Northgate Vehicle Hire (NW) Ltd,17360,,
Chorley Borough Council,http://statistics.data.gov.uk/id/local-authority/30UE,Regulatory Services,1048,EARL - Communities,Tools & Equipment - Purchase,40003,"Equipment, Furniture & Materia",5023,Vans,27/09/2023,0183323,641.76,Revenue,Northgate Vehicle Hire (NW) Ltd,17360,,
Chorley Borough Council,http://statistics.data.gov.uk/id/local-authority/30UE,Regulatory Services,1048,EARL - Communities,Tools & Equipment - Purchase,40003,"Equipment, Furniture & Materia",5023,Vans,27/09/2023,0184237,641.76,Revenue,Northgate Vehicle Hire (NW) Ltd,17360,,
Chorley Borough Council,http://statistics.data.gov.uk/id/local-authority/30UE,Central Support Services,1009,CUST - Customer & Digital,Hire Of Vehicles and Plant,30028,Contrct Hire & Operating Lease,5018,Vehicle hire: 3.5t Luton Van with tail-lift (April 2023- March 2024) Current Reg: VIN REDACTED,06/09/2023,0184412,766.08,Revenue,Northgate Vehicle Hire (NW) Ltd,17360,,
Chorley Borough Council,http://statistics.data.gov.uk/id/local-authority/30UE,Central Support Services,1009,GROW - Commercial Services,Electricity,20013,Energy Costs,5006,Unmetered CCTV Camera,20/09/2023,0184782,"2,596.27",Revenue,Npower Commercial Gas,16814,,
Chorley Borough Council,http://statistics.data.gov.uk/id/local-authority/30UE,Parking Services,1066,GROW - Commercial Services,Electricity,20013,Energy Costs,5006,unmetered pay & display,20/09/2023,0184783,"1,061.63",Revenue,Npower Commercial Gas,16814,,
Chorley Borough Council,http://statistics.data.gov.uk/id/local-authority/30UE,Parking Services,1066,GROW - Commercial Services,External Contractors,50008,Private Contractors,5042,"Provision of off street car park enforcement for period 01.04.23 - 31.03.24, , Rate: 18.40 ph, , Monday - Saturday Parking Atten",20/09/2023,0184493,"4,664.40",Revenue,NSL Limited,67253,,
Chorley Borough Council,http://statistics.data.gov.uk/id/local-authority/30UE,Homelessness,1075,EARL - Communities,Rental Bond Scheme,40241,Miscellaneous Expenses,5034,Housing/ Move on costs,20/09/2023,0184833,"1,400.00",Revenue,Oksana Murash,89556,,
Chorley Borough Council,http://statistics.data.gov.uk/id/local-authority/30UE,Business Support,1095,GROW - Commercial Services,Electricity,20013,Energy Costs,5006,24/7 to 23/8/23,13/09/2023,0184345,524.96,Revenue,Opus Energy Ltd,65093,,
Chorley Borough Council,http://statistics.data.gov.uk/id/local-authority/30UE,Corporate Management,1008,GOVN - Policy & Governance,Training Course Fees,17010,Indirect Employee Expenses,5002,APM qualification,13/09/2023,0184478,"1,690.00",Revenue,Oxford Professional Education Group,78558,,
Chorley Borough Council,http://statistics.data.gov.uk/id/local-authority/30UE,Central Support Services,1009,GROW - Commercial Services,Consultants` Fees,40077,Services,5027,Valuation Advice Strategic Employment Land,20/09/2023,0184565,"4,812.50",Revenue,Parkinson Real Estate,89407,,
Chorley Borough Council,http://statistics.data.gov.uk/id/local-authority/30UE,Homelessness,1075,GROW - Commercial Services,Cleaning Materials,40019,"Equipment, Furniture & Materia",5023,Cotswold House cleaning order September- December,20/09/2023,0184798,694.19,Revenue,Pattersons Holdings (Bristol),77537,,
Chorley Borough Council,http://statistics.data.gov.uk/id/local-authority/30UE,Central Support Services,1009,CUST - Customer & Digital,Computer - Support Services,40111,Communication and Computing,5028,AD Sync Domain upgrade professional services 3 days,20/09/2023,0183405,"3,000.00",Revenue,Phoenix Software Ltd,17046,,
Chorley Borough Council,http://statistics.data.gov.uk/id/local-authority/30UE,Development Control,1091,PLAN - Planning & Development,Legal Fees,40171,Miscellaneous Expenses,5034,"Job: Legal representation for a re-opened Planning Appeal Inquiry � Land adjacent to HMP Garth and HMP Wymott, Leyland, Lancashir",13/09/2023,0184268,"1,050.00",Revenue,Piers Riley-Smith,84151,,
Chorley Borough Council,http://statistics.data.gov.uk/id/local-authority/30UE,Service Management & Support,1009,CUST - Customer & Digital,Supplies-Grounds Maintenance,40025,"Equipment, Furniture & Materia",5023,2 x 210 litre ad blue barrel @ 1.20ppl,20/09/2023,0184726,504.00,Revenue,Pilkington Oils,18075,,
Chorley Borough Council,http://statistics.data.gov.uk/id/local-authority/30UE,Central Support Services,1009,GOVN - Policy & Governance,Consultants` Fees,40077,Services,5027,Sponsorship of Chorley Area Pink LInk Business Networking Group. 12 months (May 2023 to April 2024),13/09/2023,0184351,"1,500.00",Revenue,Pink Link Ladies Ltd,66886,,
Chorley Borough Council,http://statistics.data.gov.uk/id/local-authority/30UE,Central Support Services,1009,CUST - Customer & Digital,Consultants` Fees,40077,Services,5027,"Contract work to assist with planning enforcement, Contractor: NAME REDACTED Time period: 1 April 2023  31 March 2024",06/09/2023,0183352,"1,102.00",Revenue,Planning and PACE Solutions Ltd,82083,,
Chorley Borough Council,http://statistics.data.gov.uk/id/local-authority/30UE,Central Support Services,1009,CUST - Customer & Digital,Consultants` Fees,40077,Services,5027,"Contract work to assist with planning enforcement, Contractor: NAME REDACTED Time period: 1 April 2023  31 March 2024",06/09/2023,0184092,"1,292.00",Revenue,Planning and PACE Solutions Ltd,82083,,
Chorley Borough Council,http://statistics.data.gov.uk/id/local-authority/30UE,Central Support Services,1009,CUST - Customer & Digital,Consultants` Fees,40077,Services,5027,Contract work to assist with planning enforcement Contractor: NAME REDACTED Time period: 1 April 2023  31 March 2024,06/09/2023,0184444,988.00,Revenue,Planning and PACE Solutions Ltd,82083,,
Chorley Borough Council,http://statistics.data.gov.uk/id/local-authority/30UE,Tourism,1039,GOVN - Policy & Governance,Publicity - Advertising,40157,Miscellaneous Expenses,5034,Billboard on B&G Road,06/09/2023,0183562,"1,100.00",Revenue,PMA Outdoor Media,74978,,
Chorley Borough Council,http://statistics.data.gov.uk/id/local-authority/30UE,Democratic Represent and  Mgnt,1007,PLAN - Planning & Development,Grounds Maintenance Contractor,20043,Grounds Maintenance Costs,5013,Signage for nature reserves - water safety,27/09/2023,0184968,716.36,Revenue,Poppy Signs Ltd,21898,,
Chorley Borough Council,http://statistics.data.gov.uk/id/local-authority/30UE,Elections,1012,GOVN - Policy & Governance,Rent/Hire Of Premises,20017,Premises Rents,5007,"Retainer portacabin and toilet for by elections 14 September 2023 - quotation reference 220212792, PR161 Retainer Building � week",27/09/2023,0184862,"1,888.00",Revenue,Portakabin Limited,51521,,
Chorley Borough Council,http://statistics.data.gov.uk/id/local-authority/30UE,Development Control,1091,PLAN - Planning & Development,Agency Staff,13000,Direct Employee Expenses,5001,"Planning consulting advice, including the consideration and determination of planning applications, Time period: 24 July 2023 - 3",13/09/2023,0184116,"1,665.00",Revenue,Power Planning Consulting Ltd,89435,,
Chorley Borough Council,http://statistics.data.gov.uk/id/local-authority/30UE,Development Control,1091,PLAN - Planning & Development,Agency Staff,13000,Direct Employee Expenses,5001,"Planning consulting advice, including the consideration and determination of planning applicationsTime period: 24 July 2023 - 31 ",13/09/2023,0184279,"1,665.00",Revenue,Power Planning Consulting Ltd,89435,,
Chorley Borough Council,http://statistics.data.gov.uk/id/local-authority/30UE,Development Control,1091,PLAN - Planning & Development,Agency Staff,13000,Direct Employee Expenses,5001,"Planning consulting advice, including the consideration and determination of planning applications, Time period: 24 July 2023 - 3",20/09/2023,0184497,"1,530.00",Revenue,Power Planning Consulting Ltd,89435,,
Chorley Borough Council,http://statistics.data.gov.uk/id/local-authority/30UE,Recreation & Sport,1037,GOVN - Policy & Governance,Performing Rights Society Fees,40148,Grants and Subscriptions,5031,"Music Licence for the Lancastrian at Chorley Town Hall from 06/04/23 to 05/07/23., Invoice SIN2466389., Payment Reference: 022031",13/09/2023,0184498,622.34,Revenue,PPL PRS Ltd,77455,,
Chorley Borough Council,http://statistics.data.gov.uk/id/local-authority/30UE,Elections,1012,GOVN - Policy & Governance,Printing,40043,"Printing, Stationery & General",5026,"Canvass printing 2023, , quotation reference 10848, Stationery items, 1) 40,000 CCA forms, size A4 2pp",06/09/2023,0184350,"10,573.29",Revenue,Print Image Network,21171,,
Chorley Borough Council,http://statistics.data.gov.uk/id/local-authority/30UE,Elections,1012,GOVN - Policy & Governance,Printing,40043,"Printing, Stationery & General",5026,"11, 969 poll cards for LCC/Borough by election",06/09/2023,0184477,"2,690.00",Revenue,Print Image Network,21171,,
Chorley Borough Council,http://statistics.data.gov.uk/id/local-authority/30UE,Elections,1012,GOVN - Policy & Governance,Printing,40043,"Printing, Stationery & General",5026,Lancashire County Council by election postal vote packs,27/09/2023,0184926,"2,784.00",Revenue,Print Image Network,21171,,
Chorley Borough Council,http://statistics.data.gov.uk/id/local-authority/30UE,Elections,1012,GOVN - Policy & Governance,Printing,40043,"Printing, Stationery & General",5026,Lancashire county council by election ballot books,27/09/2023,0184927,"1,760.00",Revenue,Print Image Network,21171,,
Chorley Borough Council,http://statistics.data.gov.uk/id/local-authority/30UE,Elections,1012,GOVN - Policy & Governance,Printing,40043,"Printing, Stationery & General",5026,Postal vote packs for Borough By election,27/09/2023,0184928,"2,674.00",Revenue,Print Image Network,21171,,
Chorley Borough Council,http://statistics.data.gov.uk/id/local-authority/30UE,Elections,1012,GOVN - Policy & Governance,Printing,40043,"Printing, Stationery & General",5026,"Canvass printing 2023, , quotation reference 10848, Stationery items, 1) 40,000 CCA forms, size A4 2pp,",27/09/2023,0184981,"1,783.83",Revenue,Print Image Network,21171,,
Chorley Borough Council,http://statistics.data.gov.uk/id/local-authority/30UE,Other Short Term Creditors,,GOVN - Policy & Governance,General Balances,00100,Balance Sheet,Balance,Prudential - Aug 23 Monthly Deductions from payroll,20/09/2023,0184627,"1,550.00",Revenue,PRUDENTIAL,18178,,
Chorley Borough Council,http://statistics.data.gov.uk/id/local-authority/30UE,Other Short Term Creditors,,GOVN - Policy & Governance,General Balances,00100,Balance Sheet,Balance,Prudential AVC Wise - Aug 23 Monthly Deductions from payroll,20/09/2023,0184628,"11,235.61",Revenue,PRUDENTIAL,18178,,
Chorley Borough Council,http://statistics.data.gov.uk/id/local-authority/30UE,Capital,Capital,PLAN - Planning & Development,Main Contractor,03007,Capital Expenditure,Capital,Construction of Changing Facility at King George V Playing Fields. Original contract value of 939165.78 minus 84950 invoiced and ,27/09/2023,0184929,"249,292.65",Capital,Pulse Design and Build Ltd,85602,,
Chorley Borough Council,http://statistics.data.gov.uk/id/local-authority/30UE,Central Support Services,1009,CUST - Customer & Digital,CCTV Camera Maintenance,40007,"Equipment, Furniture & Materia",5023,30:1 Zoom 1080p HD Ball PTZ/FF Dome with IR/White Light & Wiper - Black EXCLUDING PSU,20/09/2023,0184435,"1,102.40",Revenue,Redvision CCTV,86991,,
Chorley Borough Council,http://statistics.data.gov.uk/id/local-authority/30UE,Homelessness,1075,EARL - Communities,Other Contributions,40145,Grants and Subscriptions,5031,"ADDRESS REDACTED, Boiler replacement and TRV`s",20/09/2023,0184549,"2,575.00",Revenue,Rhea Projects Ltd,77753,,
Chorley Borough Council,http://statistics.data.gov.uk/id/local-authority/30UE,Homelessness,1075,EARL - Communities,Grants - Tenant Participation,40142,Grants and Subscriptions,5031,,20/09/2023,0184740,500.00,Revenue,Richard Palin,85421,,
Chorley Borough Council,http://statistics.data.gov.uk/id/local-authority/30UE,Central Support Services,1009,CUST - Customer & Digital,Other Fees,40212,Miscellaneous Expenses,5034,Printer rental April-June Shared Sites across Chorley and SRBC,20/09/2023,0182626,"6,539.71",Revenue,Ricoh UK Ltd,17126,,
Chorley Borough Council,http://statistics.data.gov.uk/id/local-authority/30UE,Central Support Services,1009,CUST - Customer & Digital,Computer Equipment-Purchase,40098,Communication and Computing,5028,2 devices at 500 each,20/09/2023,0184770,"1,000.00",Revenue,Ricoh UK Ltd,17126,,
Chorley Borough Council,http://statistics.data.gov.uk/id/local-authority/30UE,Central Support Services,1009,CUST - Customer & Digital,Computer Equipment-Purchase,40098,Communication and Computing,5028,"20 x iphone SE black, 20 x apple usb c power adapter , Samsung Galaxy S23 Ultra",27/09/2023,0185035,"8,065.40",Revenue,Ricoh UK Ltd,17126,,
Chorley Borough Council,http://statistics.data.gov.uk/id/local-authority/30UE,Service Management & Support,1009,CUST - Customer & Digital,Supplies-Grounds Maintenance,40025,"Equipment, Furniture & Materia",5023,Supply 20 x 10litre impact line marker. Deliver to Bengal St depot,20/09/2023,0184733,608.00,Revenue,Rigby Taylor Ltd,16299,,
Chorley Borough Council,http://statistics.data.gov.uk/id/local-authority/30UE,Business Support,1095,GROW - Commercial Services,Postages,40082,Communication and Computing,5028,"Per your invoice 1802676546, renewal of postal collection service from Strawberry Fields DOP for one year from August 2023",06/09/2023,0184314,870.00,Revenue,Royal Mail Group Plc,17522,,
Chorley Borough Council,http://statistics.data.gov.uk/id/local-authority/30UE,Central Support Services,1009,EARL - Communities,Misc Expenses,40200,Miscellaneous Expenses,5034,"1 of 2 payments for:, Delivery of the Harmony Project (10 Week Programme), As per grant agreement",20/09/2023,0184793,"2,862.50",Revenue,Saheliyaan,87252,,
Chorley Borough Council,http://statistics.data.gov.uk/id/local-authority/30UE,Homelessness,1075,GROW - Commercial Services,Security Service,40062,Services,5027,"To provide site concierge services at Cotswold House temporary accommodation facility, hours as outlined , by the premises manage",06/09/2023,0184418,"7,916.63",Revenue,Secure FM Ltd,86928,,
Chorley Borough Council,http://statistics.data.gov.uk/id/local-authority/30UE,Business Support,1095,GROW - Commercial Services,Security Service,40062,Services,5027,To provide concierge services at Primrose Gardens Extra Care Facility as outlined by premises manager 7 days a week. Hourly rate ,06/09/2023,0184436,"7,916.63",Revenue,Secure FM Ltd,86928,,
Chorley Borough Council,http://statistics.data.gov.uk/id/local-authority/30UE,Business Support,1095,GROW - Commercial Services,Security Service,40062,Services,5027,"To provide site concierge services at , Tatton Gardens Extra Care facility, , hours as outlined by the premises , manager. 7 days",06/09/2023,0184450,"7,916.63",Revenue,Secure FM Ltd,86928,,
Chorley Borough Council,http://statistics.data.gov.uk/id/local-authority/30UE,Business Support,1095,GROW - Commercial Services,Security Service,40062,Services,5027,"To provide evening Site Security Services at Market Walk Shopping Centre from 5pm until midnight, 7 days a week. Hourly rate 12.",20/09/2023,0184451,"2,955.54",Revenue,Secure FM Ltd,86928,,
Chorley Borough Council,http://statistics.data.gov.uk/id/local-authority/30UE,Central Support Services,1009,EARL - Communities,Misc Expenses,40200,Miscellaneous Expenses,5034,Deposit for mural to be painted w/c 14th October - As agreed with NAME REDACTED,27/09/2023,0184857,500.00,Revenue,Simon Daly / Kingsyze Graffiti,89565,,
Chorley Borough Council,http://statistics.data.gov.uk/id/local-authority/30UE,Central Support Services,1009,EARL - Communities,Training Allowance,14005,Direct Employee Expenses,5001,Training for Pasteurisation,13/09/2023,0184173,"1,350.00",Revenue,South Ribble Borough Council,17889,,
Chorley Borough Council,http://statistics.data.gov.uk/id/local-authority/30UE,Recreation & Sport,1037,GROW - Commercial Services,Building Services Maintenance Other,20076,Fixtures and Fittings,5010,SIKA Scheme Design for Structural Integrity Works at Brinscall Baths Job Request as per NAME REDACTED,27/09/2023,0184660,"8,000.00",Revenue,Specialist UK Restorations Ltd,80825,,
Chorley Borough Council,http://statistics.data.gov.uk/id/local-authority/30UE,Tourism,1039,GOVN - Policy & Governance,Professional Fees,40063,Services,5027,"Security for CFS23 Set Up/Take Down, , Mon 24 - Tue 1 August",06/09/2023,0183430,"7,425.00",Revenue,Spencer Sutcliffe Security Ltd,89425,,
Chorley Borough Council,http://statistics.data.gov.uk/id/local-authority/30UE,Business Support,1095,GROW - Commercial Services,Electricity,20013,Energy Costs,5006,"571841968, 23 Oct 20 - 29 Oct 20",13/09/2023,0184469,630.95,Revenue,SSE Swalec,76853,,
Chorley Borough Council,http://statistics.data.gov.uk/id/local-authority/30UE,Business Support,1095,GROW - Commercial Services,Electricity,20013,Energy Costs,5006,"571841968, 30 Oct 20 - 25 Jan 21",13/09/2023,0184470,711.11,Revenue,SSE Swalec,76853,,
Chorley Borough Council,http://statistics.data.gov.uk/id/local-authority/30UE,Business Support,1095,GROW - Commercial Services,Electricity,20013,Energy Costs,5006,"571841968, 26 Jan 21 - 04 May 21",13/09/2023,0184473,754.89,Revenue,SSE Swalec,76853,,
Chorley Borough Council,http://statistics.data.gov.uk/id/local-authority/30UE,Corporate Management,1008,EARL - Communities,Other Contributions,40145,Grants and Subscriptions,5031,Household Support Fund 4 - 1st Payment,06/09/2023,0184298,"13,000.00",Revenue,St Vincent De Paul Society,89415,,
Chorley Borough Council,http://statistics.data.gov.uk/id/local-authority/30UE,Community Development,1097,EARL - Communities,Core Funding Grants,40133,Grants and Subscriptions,5031,Delivery of commissioned service - 1st Payments older people,06/09/2023,0184299,"5,000.00",Revenue,St Vincent De Paul Society,89415,,
Chorley Borough Council,http://statistics.data.gov.uk/id/local-authority/30UE,Community Development,1097,EARL - Communities,Core Funding Grants,40133,Grants and Subscriptions,5031,Delivery of commissioned service - 1st payment Food Poverty,06/09/2023,0184300,"3,750.00",Revenue,St Vincent De Paul Society,89415,,
Chorley Borough Council,http://statistics.data.gov.uk/id/local-authority/30UE,Capital,Capital,EARL - Communities,Grants,03002,Capital Expenditure,Capital,ADDRESS REDACTED,06/09/2023,0184309,"2,997.00",Capital,Stannah Lift Services Ltd,80943,,
Chorley Borough Council,http://statistics.data.gov.uk/id/local-authority/30UE,Capital,Capital,EARL - Communities,Grants,03002,Capital Expenditure,Capital,ADDRESS REDACTED,06/09/2023,0184310,"6,136.00",Capital,Stannah Lift Services Ltd,80943,,
Chorley Borough Council,http://statistics.data.gov.uk/id/local-authority/30UE,Homelessness,1075,EARL - Communities,Grants - Tenant Participation,40142,Grants and Subscriptions,5031,,20/09/2023,0184762,734.50,Revenue,Stephen Winstanley,89579,,
Chorley Borough Council,http://statistics.data.gov.uk/id/local-authority/30UE,Capital,Capital,PLAN - Planning & Development,Main Contractor,03007,Capital Expenditure,Capital,"Gillet Playing Fields, Architectural and Lead Design Services for Ancillary Facilities at Gillet Playing Fields - as per NAME REDACTED",13/09/2023,0184243,"5,100.00",Capital,Steve Wells Associates Ltd,77157,,
Chorley Borough Council,http://statistics.data.gov.uk/id/local-authority/30UE,Unapportionable Central OHeads,1009,GROW - Commercial Services,General Repairs - Reactive,20004,Repairs Maintenance & Alts,5005,Birkacre Reservoir leakage investigation.,20/09/2023,0184850,"4,967.65",Revenue,Stillwater Associates Limited,84045,,
Chorley Borough Council,http://statistics.data.gov.uk/id/local-authority/30UE,Unapportionable Central OHeads,1009,GROW - Commercial Services,General Repairs - Reactive,20004,Repairs Maintenance & Alts,5005,"Please supply the following signage for Friday St car park - vandalism , , Cut off existing vandal-resistant fixings with clips &",06/09/2023,0184273,565.00,Revenue,Street Civil Engineering Limited,76750,,
Chorley Borough Council,http://statistics.data.gov.uk/id/local-authority/30UE,Unapportionable Central OHeads,1009,GROW - Commercial Services,General Repairs - Reactive,20004,Repairs Maintenance & Alts,5005,Queens Rd Car Park Works as agreed with NAME REDACTED,20/09/2023,0184662,"4,232.00",Revenue,Street Civil Engineering Limited,76750,,
Chorley Borough Council,http://statistics.data.gov.uk/id/local-authority/30UE,Capital,Capital,PLAN - Planning & Development,Main Contractor,03007,Capital Expenditure,Capital,Jubilee Recreation Ground Sport & Access Enhancement Project. Lead Design Civils Services as detailed in quotation.,20/09/2023,0184768,658.00,Capital,Street Civil Engineering Limited,76750,,
Chorley Borough Council,http://statistics.data.gov.uk/id/local-authority/30UE,Capital,Capital,EARL - Communities,Grants,03002,Capital Expenditure,Capital,23/00010/CAG,20/09/2023,0184834,"5,300.00",Capital,Stringfellow Bldg Cntrctrs Ltd,17893,,
Chorley Borough Council,http://statistics.data.gov.uk/id/local-authority/30UE,Service Management & Support,1009,CUST - Customer & Digital,Refuse Collection,20037,Cleaning and Domestic Supplies,5012,Exchange 20 yard Street Sweepings Skip @ 82.26 each,20/09/2023,0184491,"1,133.44",Revenue,SUEZ R&R UK LTD,17615,,
Chorley Borough Council,http://statistics.data.gov.uk/id/local-authority/30UE,Service Management & Support,1009,CUST - Customer & Digital,Refuse Collection,20037,Cleaning and Domestic Supplies,5012,Exchange 35 yard General Waste Skip @ 101.86 each,20/09/2023,0184491,719.52,Revenue,SUEZ R&R UK LTD,17615,,
Chorley Borough Council,http://statistics.data.gov.uk/id/local-authority/30UE,Homelessness,1075,EARL - Communities,Grants - Tenant Participation,40142,Grants and Subscriptions,5031,,20/09/2023,0184741,500.00,Revenue,Susan McGuigan,85422,,
Chorley Borough Council,http://statistics.data.gov.uk/id/local-authority/30UE,Homelessness,1075,EARL - Communities,Grants - Tenant Participation,40142,Grants and Subscriptions,5031,,20/09/2023,0184744,500.00,Revenue,Susan Ranson,85499,,
Chorley Borough Council,http://statistics.data.gov.uk/id/local-authority/30UE,Central Support Services,1009,CUST - Customer & Digital,CCTV Camera Maintenance,40007,"Equipment, Furniture & Materia",5023,"Camera 3 PTZ Repair, Redvision Repair, Reinstallation by Technology Solutions, Cost Schedule, The costs are as follows643.42",20/09/2023,0184721,643.42,Revenue,Technology Solutions,72376,,
Chorley Borough Council,http://statistics.data.gov.uk/id/local-authority/30UE,Elections,1012,GOVN - Policy & Governance,Training Course Fees,17010,Indirect Employee Expenses,5002,"AEA Courses Tranche 2 - delegates NAME REDACTED & NAME REDACTED, course 1 - 10 october, course 2 12 December, course 3 9 Februar",27/09/2023,0184972,742.50,Revenue,The Association Of Electoral Administrators,16344,,
Chorley Borough Council,http://statistics.data.gov.uk/id/local-authority/30UE,Business Support,1095,GROW - Commercial Services,Legal Fees,40171,Miscellaneous Expenses,5034,Eviction of travellers from SFDOP visitor car park and surrounds 22/08/23,06/09/2023,0184422,"2,000.00",Revenue,The ExcluSec Group Ltd,78056,,
Chorley Borough Council,http://statistics.data.gov.uk/id/local-authority/30UE,Business Support,1095,GROW - Commercial Services,Legal Fees,40171,Miscellaneous Expenses,5034,"Provision of security officers August 2023, your invoice INV-17598",13/09/2023,0184504,"8,173.33",Revenue,The ExcluSec Group Ltd,78056,,
Chorley Borough Council,http://statistics.data.gov.uk/id/local-authority/30UE,Central Support Services,1009,CUST - Customer & Digital,Computer Equipment-Purchase,40098,Communication and Computing,5028,Astley Park - Phase 2 Wi-Fi Comissioning,27/09/2023,0183489,"2,524.48",Revenue,The Networking People (NorthWest) Ltd T/a TNP Ltd,73446,,
Chorley Borough Council,http://statistics.data.gov.uk/id/local-authority/30UE,Central Support Services,1009,CUST - Customer & Digital,Computer Software-Purchase,40100,Communication and Computing,5028,Options for purchasing an additional block of RMACs.,20/09/2023,0184250,"6,000.00",Revenue,The Networking People (NorthWest) Ltd T/a TNP Ltd,73446,,
Chorley Borough Council,http://statistics.data.gov.uk/id/local-authority/30UE,Homelessness,1075,EARL - Communities,Grants - Tenant Participation,40142,Grants and Subscriptions,5031,,20/09/2023,0184745,500.00,Revenue,Timothy Philips,85423,,
Chorley Borough Council,http://statistics.data.gov.uk/id/local-authority/30UE,Central Support Services,1009,GOVN - Policy & Governance,Chorley B.C. Souvenirs,40028,"Equipment, Furniture & Materia",5023,500 x A5 Broadstairs Recycled Paper Notebook. Product code 196371 with full colour printed logo on front.,06/09/2023,0183121,"1,392.22",Revenue,Total Merchandise Ltd,20898,,
Chorley Borough Council,http://statistics.data.gov.uk/id/local-authority/30UE,Central Support Services,1009,GROW - Commercial Services,Professional Fees,40063,Services,5027,"TVS Business Case, Request as per NAME REDACTED",20/09/2023,0184319,"4,750.00",Revenue,Trebbi Continuum,77723,,
Chorley Borough Council,http://statistics.data.gov.uk/id/local-authority/30UE,Service Management & Support,1009,CUST - Customer & Digital,Grounds Maintenance Contractor,20043,Grounds Maintenance Costs,5013,Remove fallen Ash at St Lawrence`s church,20/09/2023,0184641,840.00,Revenue,Treescape North West Ltd,17688,,
Chorley Borough Council,http://statistics.data.gov.uk/id/local-authority/30UE,Service Management & Support,1009,CUST - Customer & Digital,Grounds Maintenance Contractor,20043,Grounds Maintenance Costs,5013,Treexpert Invoice 0193,20/09/2023,0184716,680.00,Revenue,Treexpert Tree Care,78580,,
Chorley Borough Council,http://statistics.data.gov.uk/id/local-authority/30UE,Central Support Services,1009,EARL - Communities,Misc Expenses,40200,Miscellaneous Expenses,5034,Adult health and wellbeing grant,20/09/2023,0184696,650.00,Revenue,UDevelop CIC,84423,,
Chorley Borough Council,http://statistics.data.gov.uk/id/local-authority/30UE,Unapportionable Central OHeads,1009,GOVN - Policy & Governance,Misc Expenses,40200,Miscellaneous Expenses,5034,Levels 1-5,13/09/2023,0184559,"1,472.00",Revenue,UK Healthcare (BDHSC),17241,,
Chorley Borough Council,http://statistics.data.gov.uk/id/local-authority/30UE,Unapportionable Central OHeads,1009,GOVN - Policy & Governance,Misc Expenses,40200,Miscellaneous Expenses,5034,Levels 1-5,20/09/2023,0184711,"1,508.80",Revenue,UK Healthcare (BDHSC),17241,,
Chorley Borough Council,http://statistics.data.gov.uk/id/local-authority/30UE,Control Accounts,Control,GOVN - Policy & Governance,General Balances,00100,Balance Sheet,Balance,Unify - Aug 23 Monthly Deductions from payroll,20/09/2023,0184622,905.00,Revenue,Unify Credit Union Ltd,55509,,
Chorley Borough Council,http://statistics.data.gov.uk/id/local-authority/30UE,Central Support Services,1009,CUST - Customer & Digital,Telephones - Rentals,40083,Communication and Computing,5028,Astley village Parish council,20/09/2023,0184712,"2,641.75",Revenue,Virgin Media Payments Ltd,17632,,
Chorley Borough Council,http://statistics.data.gov.uk/id/local-authority/30UE,Central Support Services,1009,CUST - Customer & Digital,Telephones - Rentals,40083,Communication and Computing,5028,,27/09/2023,0184937,"2,145.00",Revenue,Virgin Media Payments Ltd,17632,,
Chorley Borough Council,http://statistics.data.gov.uk/id/local-authority/30UE,Central Support Services,1009,GROW - Commercial Services,Agency Staff,13000,Direct Employee Expenses,5001,Agency Fees for NAME REDACTED - 12mths,13/09/2023,0183917,700.56,Revenue,Vivid Resourcing Ltd,76938,,
Chorley Borough Council,http://statistics.data.gov.uk/id/local-authority/30UE,Central Support Services,1009,GROW - Commercial Services,Agency Staff,13000,Direct Employee Expenses,5001,Estates surveyor fees for NAME REDACTED as agreed with NAME REDACTED,13/09/2023,0183930,"4,028.75",Revenue,Vivid Resourcing Ltd,76938,,
Chorley Borough Council,http://statistics.data.gov.uk/id/local-authority/30UE,Central Support Services,1009,GROW - Commercial Services,Agency Staff,13000,Direct Employee Expenses,5001,Agency fees for NAME REDACTED,13/09/2023,0184013,"1,886.50",Revenue,Vivid Resourcing Ltd,76938,,
Chorley Borough Council,http://statistics.data.gov.uk/id/local-authority/30UE,Central Support Services,1009,GROW - Commercial Services,Agency Staff,13000,Direct Employee Expenses,5001,Agency fees for NAME REDACTED,13/09/2023,0184014,"1,102.50",Revenue,Vivid Resourcing Ltd,76938,,
Chorley Borough Council,http://statistics.data.gov.uk/id/local-authority/30UE,Central Support Services,1009,GROW - Commercial Services,Agency Staff,13000,Direct Employee Expenses,5001,Agency fees for NAME REDACTED,13/09/2023,0184015,"1,825.25",Revenue,Vivid Resourcing Ltd,76938,,
Chorley Borough Council,http://statistics.data.gov.uk/id/local-authority/30UE,Central Support Services,1009,GROW - Commercial Services,Agency Staff,13000,Direct Employee Expenses,5001,Agency fees for NAME REDACTED,13/09/2023,0184207,"1,776.25",Revenue,Vivid Resourcing Ltd,76938,,
Chorley Borough Council,http://statistics.data.gov.uk/id/local-authority/30UE,Development Control,1091,PLAN - Planning & Development,Agency Staff,13000,Direct Employee Expenses,5001,"Contract work to assist with planning application processing, Contractor: NAME REDACTED, Time period: 1 April 2023  31 December 2",13/09/2023,0184236,"1,898.00",Revenue,Vivid Resourcing Ltd,76938,,
Chorley Borough Council,http://statistics.data.gov.uk/id/local-authority/30UE,Central Support Services,1009,GROW - Commercial Services,Agency Staff,13000,Direct Employee Expenses,5001,Estates surveyor fees for NAME REDACTED as agreed with NAME REDACTED,20/09/2023,0184280,"1,993.75",Revenue,Vivid Resourcing Ltd,76938,,
Chorley Borough Council,http://statistics.data.gov.uk/id/local-authority/30UE,Central Support Services,1009,GROW - Commercial Services,Agency Staff,13000,Direct Employee Expenses,5001,Estates surveyor fees for NAME REDACTED as agreed with NAME REDACTED,27/09/2023,0184305,"3,602.50",Revenue,Vivid Resourcing Ltd,76938,,
Chorley Borough Council,http://statistics.data.gov.uk/id/local-authority/30UE,Central Support Services,1009,GROW - Commercial Services,Agency Staff,13000,Direct Employee Expenses,5001,Estates surveyor fees for NAME REDACTED as agreed with NAME REDACTED,13/09/2023,0184307,"3,987.50",Revenue,Vivid Resourcing Ltd,76938,,
Chorley Borough Council,http://statistics.data.gov.uk/id/local-authority/30UE,Central Support Services,1009,GROW - Commercial Services,Agency Staff,13000,Direct Employee Expenses,5001,Estates surveyor fees for NAME REDACTED as agreed with NAME REDACTED,13/09/2023,0184308,"1,993.75",Revenue,Vivid Resourcing Ltd,76938,,
Chorley Borough Council,http://statistics.data.gov.uk/id/local-authority/30UE,Development Control,1091,PLAN - Planning & Development,Agency Staff,13000,Direct Employee Expenses,5001,"Contract work to assist with planning application processing, Contractor: NAME REDACTED, Time period: 1 April 2023  31 December 2",06/09/2023,0184322,"1,898.00",Revenue,Vivid Resourcing Ltd,76938,,
Chorley Borough Council,http://statistics.data.gov.uk/id/local-authority/30UE,Central Support Services,1009,GROW - Commercial Services,Agency Staff,13000,Direct Employee Expenses,5001,Estates surveyor fees for NAME REDACTED as agreed with NAME REDACTED,13/09/2023,0184395,"3,973.75",Revenue,Vivid Resourcing Ltd,76938,,
Chorley Borough Council,http://statistics.data.gov.uk/id/local-authority/30UE,Central Support Services,1009,GROW - Commercial Services,Agency Staff,13000,Direct Employee Expenses,5001,Agency Fees for NAME REDACTED - 12mths,20/09/2023,0184551,897.84,Revenue,Vivid Resourcing Ltd,76938,,
Chorley Borough Council,http://statistics.data.gov.uk/id/local-authority/30UE,Central Support Services,1009,GROW - Commercial Services,Agency Staff,13000,Direct Employee Expenses,5001,Agency Fees for NAME REDACTED - Sept / Oct 2023,20/09/2023,0184552,915.36,Revenue,Vivid Resourcing Ltd,76938,,
Chorley Borough Council,http://statistics.data.gov.uk/id/local-authority/30UE,Central Support Services,1009,GROW - Commercial Services,Agency Staff,13000,Direct Employee Expenses,5001,Agency Fees for NAME REDACTED - Sept / Oct 2023,20/09/2023,0184553,764.64,Revenue,Vivid Resourcing Ltd,76938,,
Chorley Borough Council,http://statistics.data.gov.uk/id/local-authority/30UE,Central Support Services,1009,GROW - Commercial Services,Agency Staff,13000,Direct Employee Expenses,5001,Agency Fees for NAME REDACTED - Sept / Oct 2023,20/09/2023,0184554,"1,480.80",Revenue,Vivid Resourcing Ltd,76938,,
Chorley Borough Council,http://statistics.data.gov.uk/id/local-authority/30UE,Central Support Services,1009,GROW - Commercial Services,Agency Staff,13000,Direct Employee Expenses,5001,Agency Fees for NAME REDACTED - 12mths,20/09/2023,0184555,871.44,Revenue,Vivid Resourcing Ltd,76938,,
Chorley Borough Council,http://statistics.data.gov.uk/id/local-authority/30UE,Central Support Services,1009,GROW - Commercial Services,Agency Staff,13000,Direct Employee Expenses,5001,Agency Fees for NAME REDACTED - 12mths,20/09/2023,0184556,850.56,Revenue,Vivid Resourcing Ltd,76938,,
Chorley Borough Council,http://statistics.data.gov.uk/id/local-authority/30UE,Central Support Services,1009,GROW - Commercial Services,Agency Staff,13000,Direct Employee Expenses,5001,Agency Fees for NAME REDACTED - 12mths,20/09/2023,0184771,"1,599.60",Revenue,Vivid Resourcing Ltd,76938,,
Chorley Borough Council,http://statistics.data.gov.uk/id/local-authority/30UE,Development Control,1091,PLAN - Planning & Development,Agency Staff,13000,Direct Employee Expenses,5001,"Contract work to assist with planning application processing, Contractor: NAME REDACTED, Time period: 1 April 2023  31 December 2",20/09/2023,0184776,"1,898.00",Revenue,Vivid Resourcing Ltd,76938,,
Chorley Borough Council,http://statistics.data.gov.uk/id/local-authority/30UE,Capital,Capital,GROW - Commercial Services,Main Contractor,03007,Capital Expenditure,Capital,Provide PAT & FAT Testing and replacement small power outlets for new Cafe area refurbishment at All seasons Leisure Centre,13/09/2023,0184206,"5,524.85",Capital,Walker Gabbott Electrical Ltd,83932,,
Chorley Borough Council,http://statistics.data.gov.uk/id/local-authority/30UE,Unapportionable Central OHeads,1009,GROW - Commercial Services,General Repairs - Reactive,20004,Repairs Maintenance & Alts,5005,Reactive Electrical Repair Works @ Union Street,13/09/2023,0184258,"7,614.12",Revenue,Walker Gabbott Electrical Ltd,83932,,
Chorley Borough Council,http://statistics.data.gov.uk/id/local-authority/30UE,Unapportionable Central OHeads,1009,GROW - Commercial Services,General Repairs - Reactive,20004,Repairs Maintenance & Alts,5005,Reactive Electrical Repair Works @ Union Street,13/09/2023,0184271,"1,389.00",Revenue,Walker Gabbott Electrical Ltd,83932,,
Chorley Borough Council,http://statistics.data.gov.uk/id/local-authority/30UE,Business Support,1095,GROW - Commercial Services,Planned Maintenance,20006,Repairs Maintenance & Alts,5005,"10 No. Emergency Lights at DoP, Strawberry Fields",13/09/2023,0184331,"1,482.23",Revenue,Walker Gabbott Electrical Ltd,83932,,
Chorley Borough Council,http://statistics.data.gov.uk/id/local-authority/30UE,Unapportionable Central OHeads,1009,GROW - Commercial Services,Planned Maintenance,20006,Repairs Maintenance & Alts,5005,Reactive Electrical Repair Works @ Community Centre`s,20/09/2023,0184714,754.78,Revenue,Walker Gabbott Electrical Ltd,83932,,
Chorley Borough Council,http://statistics.data.gov.uk/id/local-authority/30UE,Business Support,1095,GROW - Commercial Services,Water - Metered Supplies,20022,Water Services,5009,"700 273 0728, 31 Jul 22 - 01 Apr 23",13/09/2023,0184419,678.11,Revenue,Water-plus,17926,,
Chorley Borough Council,http://statistics.data.gov.uk/id/local-authority/30UE,Business Support,1095,GROW - Commercial Services,Water - Metered Supplies,20022,Water Services,5009,"700 273 0728, 01 Apr 23 - 01 Apr 24",13/09/2023,0184456,"1,033.37",Revenue,Water-plus,17926,,
Chorley Borough Council,http://statistics.data.gov.uk/id/local-authority/30UE,Homelessness,1075,GROW - Commercial Services,Water - Metered Supplies,20022,Water Services,5009,"416 056 5113, 28 Jul 23 - 27 Aug 23",13/09/2023,0184383,714.04,Revenue,WaterPlus 4160565113 Cotswold House,85562,,
Chorley Borough Council,http://statistics.data.gov.uk/id/local-authority/30UE,Business Support,1095,GROW - Commercial Services,Water - Metered Supplies,20022,Water Services,5009,"600 225 9172, 14 Jul 23 - 13 Aug 23",13/09/2023,0184584,"1,060.53",Revenue,WaterPlus 6002259172 The Strawberry Fields,86926,,
Chorley Borough Council,http://statistics.data.gov.uk/id/local-authority/30UE,Central Support Services,1009,PLAN - Planning & Development,Misc Expenses,40200,Miscellaneous Expenses,5034,"3 x Pendle style lecterns to following spec:, �	Pendle Style lectern, �	A1 display Lectern with 40mm return on face all round Alu",20/09/2023,0184557,"2,697.00",Revenue,White Hill Direct Ltd.,64098,,
Chorley Borough Council,http://statistics.data.gov.uk/id/local-authority/30UE,Homelessness,1075,EARL - Communities,Grants - Tenant Participation,40142,Grants and Subscriptions,5031,,20/09/2023,0184755,500.00,Revenue,William Quinn,85652,,
Chorley Borough Council,http://statistics.data.gov.uk/id/local-authority/30UE,Development Control,1091,PLAN - Planning & Development,Professional Fees,40063,Services,5027,"WSP (NAME REDACTED), Providing professional representation for a re-opened Planning Appeal Inquiry � Land adjacent to HMP ",13/09/2023,0184442,"7,885.00",Revenue,WSP UK Ltd,77416,,
Chorley Borough Council,http://statistics.data.gov.uk/id/local-authority/30UE,Street Cleansing,1049,CUST - Customer & Digital,Provn Of Street Furniture,20057,Grounds Maintenance Costs,5013,As per Sales quotation 9000005384,06/09/2023,0184396,"2,025.00",Revenue,Wybone Ltd,18097,,
Chorley Borough Council,http://statistics.data.gov.uk/id/local-authority/30UE,Central Support Services,1009,CUST - Customer & Digital,Other Fees,40212,Miscellaneous Expenses,5034,Meter readings ongoing costs 2023/24,27/09/2023,0184943,530.77,Revenue,Xeretec Document Solutions,20052,,
Chorley Borough Council,http://statistics.data.gov.uk/id/local-authority/30UE,Capital,Capital,GROW - Commercial Services,Architects Fees,03022,Capital Expenditure,Capital,Town Hall Back Doors - Outer Door Set,13/09/2023,0183406,"5,830.38",Capital,Yates Entrance Solutions Ltd,84714,,
